Cogmind - Beta 16 @@@ ROGUE MODE // 2025.10.24 @ 23:02:42 Player: BatSpy Result: Destroyed by G-34 Mercenary with Small Laser Performance ------------- Evolutions (0) 0 Regions Visited (1) 200 Robots Destroyed (8) 40 Value Destroyed (135) 135 Prototype IDs (0) 0 Alien Tech Used (0) 0 Bonus (0) 0 TOTAL SCORE: 375 Bonus ------- None Cogmind --------- Core Integrity 0/250 Matter 299/300 Energy 100/100 System Corruption 0% Temperature Cool (12) Movement Core (750) Ox14 Location -10/Materials Parts ------- > --- POWER (1) -------- (None) > --- PROPULSION (2) --- (None) > --- UTILITY (2) ------ Small Storage Unit High-capacity Storage Unit > --- WEAPON (2) ------- (None) > --- INVENTORY (20) --- Light Ion Engine Light Ion Engine Peak State ------------ > --- POWER ------------ Ion Engine > --- PROPULSION ------- Light Treads Light Treads > --- UTILITY ---------- Small Storage Unit High-capacity Storage Unit > --- WEAPON ----------- EM Pulse Gun Small Laser > --- INVENTORY -------- Light Ion Engine [Rating: 7] Favorites ----------- Power Ion Engine Engine Ion Engine Propulsion Light Treads Treads Light Treads Utility Small Storage Unit Storage Small Storage Unit Weapon Small Laser Energy Gun Small Laser Build | -11 -10 ------- Run | Yrd Mat Slots Evolved . | . . Power . | . . Propulsion . | . . Utility . | . . Weapon . | . . Parts Attached 8 | 6 2 Power 2 | 1 1 Engine 2 | 1 1 Core . | . . Reactor . | . . Propulsion 2 | 2 . Treads 2 | 2 . Leg . | . . Wheel . | . . Hover . | . . Flight . | . . Utility 2 | 1 1 Device . | . . Storage 2 | 1 1 Processor . | . . Hackware . | . . Protection . | . . Artifact . | . . Weapon 2 | 2 . Energy Gun 2 | 2 . Energy Cannon . | . . Ballistic Gun . | . . Ballistic Cannon . | . . Launcher . | . . Special Weapon . | . . Impact Weapon . | . . Slashing Weapon . | . . Piercing Weapon . | . . Special Melee Weapon . | . . Unidentified Prototypes . | . . Parts Lost 5 | . 5 Power 1 | . 1 Propulsion 2 | . 2 Utility . | . . Weapon 2 | . 2 Highest Loss Streak 5 | . 5 To Critical Strikes . | . . Average Backups 1 | 1 1 Power 1 | . 1 Propulsion . | . . Utility . | . . Weapon . | . . Tool/Special . | . . Unused Backups . | . . Power . | . . Propulsion . | . . Utility . | . . Weapon . | . . Tool/Special . | . . Average Slot Usage (%) 85 | . 85 Engine 11 | . 11 Treads 23 | . 23 Storage 25 | . 25 Energy Gun 23 | . 23 Peak Build Rating 7 | 6 7 Average Rating 5 | 4 6 On Entrance 3 | . 6 Avg Prop Armor Cover (%) . | . . Naked Turns . | . . Heaviest Build 53 | 13 53 Greatest Support 40 | 40 40 Greatest Overweight (x) 15 | . 15 Average Overweight (x) 1 | . 1 Largest Inventory Capacity 20 | 8 20 Average Capacity 16 | 6 18 Most Carried 5 | 4 5 Average Carried 1 | 1 1 Final Capacity 20 | 8 20 Final Carried 2 | 1 2 Class Distribution -------------------- 100% | Mutant Dominant Class ---------------- Mutant | -10/Materials Resources | -11 -10 ----------- Run | Yrd Mat Matter Collected 309 | 259 50 Remotely . | . . Salvage Created 189 | . 189 Parts 18 | . 18 Haulers Intercepted . | . . Recyclers Shooed 1 | . 1 Parts Field Recycled . | . . Retrieved Matter . | . . Parts Self-Destructed . | . . Prevented . | . . Parts Restored . | . . Kills | -11 -10 ------- Run | Yrd Mat Combat Hostiles Destroyed 5 | . 5 Guns 3 | . 3 AOE 2 | . 2 Classes Destroyed 4 | . 4 Builder 1 | . 1 Watcher 2 | . 2 Swarmer 3 | . 3 Grunt 2 | . 2 Best Kill Streak 3 | . 3 Combat Bots Only 3 | . 3 Max Kills in Single Turn 3 | . 3 Gunslinging . | . . Exploded 2 | . 2 Melee . | . . Uniques/NPCs Destroyed . | . . Combat | -11 -10 -------- Run | Yrd Mat Hostile Shots Fired 80 | . 80 Missed 19 | . 19 Hits 61 | . 61 Projectile 61 | . 61 Damage Taken 748 | . 748 Core 253 | . 253 Absorbed by Shields . | . . Core Remaining (%) 100 | 100 . Volleys Fired 20 | . 20 Largest 2 | . 2 Hottest 80 | . 80 Shots Fired 35 | . 35 Gun 35 | . 35 Cannon . | . . Launcher . | . . Special . | . . Kinetic . | . . Thermal 19 | . 19 Explosive . | . . Electromagnetic 16 | . 16 Robot Hit Streak 8 | . 8 Robot Miss Streak 1 | . 1 Penetration Max . | . . Secondary Targets 1 | . 1 Max Gunslinging Chain 1 | . 1 Shots Hit Robots 26 | . 26 Core Hits 13 | . 13 Critical Kills . | . . Critical Parts Destroyed . | . . Critical Strikes . | . . Melee Attacks . | . . Impact . | . . Slashing . | . . Piercing . | . . Sneak Attacks . | . . Combat Hostiles . | . . Follow-up Attacks . | . . Damage Inflicted 440 | . 440 Guns 342 | . 342 Cannons . | . . Explosions 84 | . 84 Melee . | . . Ramming 14 | . 14 Kinetic . | . . Thermal 236 | . 236 Explosive . | . . Electromagnetic 190 | . 190 Impact . | . . Slashing . | . . Piercing . | . . Highest Corruption . | . . Average Corruption . | . . Corruption Purged . | . . Corruption Blocked . | . . Overload Shots . | . . Overflow Damage . | . . Projectiles . | . . Explosions . | . . Melee . | . . Knockbacks . | . . Impact . | . . Kinetic . | . . Secondary . | . . Self-Inflicted Damage 40 | . 40 Shots 1 | . 1 Rammed 2 | . 2 Targets Rammed 2 | . 2 Kicked . | . . Crushed . | . . Highest Temperature 150 | . 150 Average Temperature 58 | . 58 Received Heat Transfer 369 | . 369 Siege Activations . | . . Martial Activations . | . . Shielding Activations . | . . Robots Disrupted . | . . Combat Hostiles . | . . Robots Corrupted . | . . Combat Hostiles . | . . Parts Fried . | . . Impact Corruptions . | . . Robots Melted . | . . Combat Hostiles . | . . Parts Melted . | . . Heat Transferred 400 | . 400 Parts Sabotaged . | . . Parts Stolen . | . . Parts Stripped . | . . Power Chain Reactions 1 | . 1 Alert | -11 -10 ------- Run | Yrd Mat Maximum Alert Level . | . . Low Security (%) 100 | 100 100 Level 1 . | . . Level 2 . | . . Level 3 . | . . Level 4 . | . . Level 5 . | . . High Security . | . . Max Security . | . . Peak Influence 77 | . 77 Initial . | . . Average 14 | . 16 Influence Increases 173 | . 173 Destroy 0b10 Robot/C 100 | . 100 Destroy 0b10 Robot/NC 15 | . 15 Destroy Leader 24 | . 24 Successful Hack 12 | . 12 Destroy Structure 7 | . 7 Lose Combat Pursuer 15 | . 15 Influence Decreases 158 | . 158 Time Decay 158 | . 158 Squads Dispatched 1 | . 1 Investigation . | . . Extermination . | . . Reinforcement 1 | . 1 Assault . | . . Garrison . | . . Intercept . | . . Searches Triggered . | . . Construction Impeded . | . . Haulers Reinforced . | . . Active Scanning Responses . | . . Cargo Convoy Interrupts . | . . Stealth | -11 -10 --------- Run | Yrd Mat Distress Signals 1 | . 1 Communications Jammed . | . . Distress Signals . | . . Times Spotted 15 | . 15 Peak Tracking Total 4 | . 4 Tactical Retreats 1 | . 1 Traps | -11 -10 ------- Run | Yrd Mat Traps Triggered 2 | . 2 Indirectly . | . . Trap Hack Attempts . | . . Triggered . | . . Disarmed . | . . Reprogrammed . | . . Reused . | . . Traps Extracted . | . . Installed . | . . Triggered . | . . Machines | -11 -10 ---------- Run | Yrd Mat Machines Disabled . | . . Max in Single Turn . | . . Machines Repaired . | . . Machines Dismantled . | . . Machines Sabotaged . | . . Overloaded Fab Kills . | . . Hacking | -11 -10 --------- Run | Yrd Mat Machines Accessed 3 | . 3 Terminals 3 | . 3 Fabricators . | . . Repair Stations . | . . Recycling Units . | . . Scanalyzers . | . . Garrison Access . | . . Total Hacks 8 | . 8 Successful 6 | . 6 Failed 2 | . 2 Catastrophic . | . . Database Lockouts . | . . Manual . | . . Terminals 8 | . 8 Fabricators . | . . Repair Stations . | . . Recycling Units . | . . Scanalyzers . | . . Garrison Access . | . . Terminal Hacks 6 | . 6 Record 2 | . 2 Alert Level 1 | . 1 Maintenance Status 2 | . 2 Zone Layout 1 | . 1 Fabricator Hacks . | . . Repair Station Hacks . | . . Recycling Unit Hacks . | . . Scanalyzer . | . . Garrison Access Hacks . | . . Unauthorized Hacks . | . . Terminals . | . . Fabricators . | . . Repair Stations . | . . Recycling Units . | . . Scanalyzers . | . . Garrison Access . | . . Data Cores Recovered . | . . Used . | . . Hacking Detections 3 | . 3 Full Trace Events . | . . Feedback Events . | . . Feedback Blocked . | . . Robot Schematics Acquired . | . . Robots Built . | . . Authchips . | . . Time . | . . Total Robot Build Rating . | . . Part Schematics Acquired . | . . Parts Built . | . . Authchips . | . . Time . | . . Total Part Build Rating . | . . Part Studies Acquired . | . . Parts Repaired . | . . Time . | . . Parts Recycled . | . . Recycled Matter . | . . Retrieved Matter . | . . Retrieved Components . | . . Parts Scanalyzed . | . . Part Schematics Acquired . | . . Parts Damaged . | . . Bothacking | -11 -10 ------------ Run | Yrd Mat Used RIF Installer . | . . Robots Hacked . | . . Non-combat . | . . Combat . | . . Robot Hacks Applied . | . . Relay Couplers Released . | . . Fabnet Peak Effective % . | . . Robots Rewired . | . . Allies Hacked . | . . Hacks Repelled . | . . Allies | -11 -10 -------- Run | Yrd Mat Total Allies . | . . Largest Group . | . . Highest-Rated Group . | . . Highest-Rated Ally . | . . Total Orders . | . . Ally Attacks . | . . Total Damage . | . . Kills . | . . Allies Corrupted . | . . Allies Melted . | . . Intel | -11 -10 ------- Run | Yrd Mat Active Infowar (turns) . | . . Robot Analysis Total . | . . Derelict Logs Recovered . | . . Drone Launches . | . . Drone Recoveries . | . . Exploration | -11 -10 ------------- Run | Yrd Mat Turns Passed 654 | 75 579 Spaces Moved 250 | 49 201 Core 23 | 14 9 Treads 227 | 35 192 Legs . | . . Wheels . | . . Hover . | . . Flight . | . . Fastest Speed 50 | 50 160 Average Speed 224 | 128 247 Slowest Speed 800 | 160 800 Overloaded Moves . | . . Propulsion Burnouts . | . . Robots Hopped . | . . Potential Cave-ins . | . . Cave-ins Triggered . | . . Exploration Rate (%) 25 | 4 46 Regions Visited 1 Branch Regions . Pre-discovered Areas . | . . Known Exits Taken . | . . Unknown Exits Taken 1 | 1 . Scrap Searched . | . . Spaces Dug . | . . Terrain Destroyed 6 | . 6 Melee . | . . Projectile . | . . AOE 6 | . 6 Terrain Rammed . | . . Walls Destroyed . | . . Machines Disabled . | . . Actions | -11 -10 --------- Run | Yrd Mat Total 304 | 61 243 Wait 4 | . 4 Move 249 | 48 201 Hop . | . . Pick Up 15 | 7 8 Fast Attach . | . . Attach 13 | 6 7 Detach . | . . Swap 1 | . 1 Drop . | . . Fire 20 | . 20 Melee . | . . Ram . | . . Kick . | . . Crush 2 | . 2 Escape Stasis . | . . Rewire . | . . Trap . | . . Miscellaneous . | . . Route ------- -11/Scrapyard -10/Materials (discovered 2 exits: [*Mat] / [*Min]) History --------- Turn | Location | Event 3 | -11/Scrapyard | Discovered new exit (range 15) 76 | -11/Scrapyard | Entered Materials 137 | -10/Materials | Discovered new exit (range 9) 274 | -10/Materials | Discovered new exit (range 10) 316 | -10/Materials | Build established: Mutant 622 | -10/Materials | Core integrity fell below 50% 652 | -10/Materials | Core integrity fell below 20% 654 | -10/Materials | Lost 5 parts (1p2n2w) 655 | -10/Materials | Destroyed by G-34 Mercenary with Small Laser Last Messages --------------- 00618_ K-01 Serf cleans the Atomic Centrifuge. 00623_ Lgt. Treads destroyed. 00633_ R-06 Scavenger inserts Welding Torch into recycling unit. 00634_ Recycling unit begins recycling process. 00636_ R-06 Scavenger inserts Wheel into recycling unit. 00638_ K-01 Serf cleans the Atomic Centrifuge. 00639_ R-06 Scavenger inserts Corrupted Structural Scanner into recycling unit. 00640_ Recycling unit begins recycling process. 00640_ K-01 Serf cleans the Terminal. 00640_ K-01 Serf cleans the Atomic Centrifuge. 00642_ R-06 Scavenger inserts Terrain Scanner into recycling unit. 00650_ K-01 Serf destroyed. 00650_ K-01 Serf collects debris. 00653_ K-01 Serf cleans the Atomic Centrifuge. 00654_ K-01 Serf destroyed. Map ----- +----------------------------------------------------+ | #+## ## # ########???????????????? | | ## ### """ """ # #??????????????????????? | | ## #?# """ """ + #??????????????????????? | | "" ## ### """ """ # #??????????????????????? | | "" ## + # #??????????????????????? | | "" ## ### "T" ###+###??????????????????????? | | ######?# ! # #??????????????????????? | | ####??????########### ###########????????????? | | #???????????????????# ## ????????????? | | #????????????????????????????????????????????????? | | #????????????????????????????????????????????????? | | #????????????????????????????????????????????????? | | #????????????????????????????????????????????????? | | #????????????????????????????????????????????????? | | #????????????????????????????????????????????????? | | #?????????????#######????????????????????????????? | | #????????????# #???????????#+#??????????????? | | #????????????# #?########### #???????? ? ?? | | #????????????# """ #?# # #????? "" ?? | | #######??????# """ #?# """ #=#### "" ? | | """ #??????? """ #?# "Y" #% ? | | ""R" #????????? #?# """ g + [ ! ? | | "" " #?????????##+##?# """ gg#=%* ? | | ########### ### """ ! ###+####### ? | | + %!!! T k/ k %= #?? ???????????? | | #####+########### ### @ % #??? ?????????? | | ###?# #?????????## ##?###########???? ????????? | | #?# #??????????# #?????????????????? #??????? | | #?# #??????????# #?????????????????? #??????? | | ###+####???????# #??????????????????? #??????? | | ## #???????# #???????????????????? #??????? | | ## !#???????# #????????????????????? #??????? | | ## #???????# ?????????????????????? #??????? | | ## #???????? ???????????????????????#??????? | | +### """ #???????? ??????????????????????????????? | | # """ #???????? ??????????????????????????????? | | + """ #???????? ??????????????????????????????? | | ^^# #???????????????????????????????????????? | | # """ #???????????????????????????????????????? | | # """ #???????????????????????????????????????? | | + """ #???????????????????????????????????????? | | #### #???????????????????????????????????????? | | ???#######???????????????????????????????????????? | | ?????????????????????????????????????????????????? | | ?????????????????????????????????????????????????? | | ?????????????????????????????????????????????????? | | ?????????????????????????????????????????????????? | | ?????????????????????????????????????????????????? | | ?????????????????????????????????????????????????? | | ?????????????????????????????????????????????????? | +----------------------------------------------------+ Best States ------------- Heat Dissipation 25 Energy Generation 10 Energy Capacity 250 Matter Stores 300 Matter Capacity 300 Sight Range 16 Terrain Scan Density 10 Evasion (%) 50 Recoil Reduction 2 Item Schematics ----------------- None Robot Schematics ------------------ None Fabricated ------------ Nothing Repaired ---------- Nothing Studied --------- None Alien Tech Used ----------------- None Achievements -------------- None Challenges ------------ None Game ------ Seed SwarmMassBlaster Manual? 0 Play Time 00:06:34 Cumulative 46.2 hours Start 2025.10.24 @ 22:43:21 End 2025.10.24 @ 23:02:42 Sessions 1 Manual Loads 0 Difficulty Rogue Special Mode None Game No. 83 Rogue 83 Adventurer 0 Explorer 0 Win Type - Total 0 Types 0/0/0/0/0/0/0/0/0/0 Lore% 19 Gallery% 40 Achievement% 21 Wizard Run 0 Options --------- Layout 1 ASCII 0 Keyboard 0 Movement Mouse Keybinds 0 Fullscreen 2 Font 32/Smallcaps Map View 50x35 Zoom Use 0% Tactical HUD 1 Map Filters NONE Filters NONE Steam 1 RUN: 2ba3316b-0521-460f-a3bc-4f5159f8850c